bitfinex/quotes_ETHUSD_20240621
["timestamp","ask_amount","ask_price","bid_price","bid_amount"]
[1718988703194,1.99133324,3494.0,3493.8,2.28975]
[1718988703361,0.49546168,3493.9,3493.8,2.28975]
[1718988703894,0.49547834,3493.9,3493.8,2.28975]
[1718988704464,1.49592172,3494.0,3493.8,2.28975]
[1718988704706,1.49592172,3494.0,3493.9,2.2897]
[1718988704928,0.61507063,3494.0,3493.9,2.2897]
[1718988705083,2.6960767,3494.0,3493.9,2.2897]
[1718988705280,4.07238474,3494.0,3493.9,2.2897]
[1718988705714,0.61507063,3494.0,3493.9,2.2897]
[1718988706271,0.61505779,3494.0,3493.9,2.2897]
[1718988706689,0.119593,3494.0,3493.9,2.2897]
[1718988711009,0.119593,3494.0,3493.5,0.28710718]
[1718988711010,0.61507594,3494.0,3493.5,0.28710718]
[1718988711211,0.61507594,3494.0,3492.9,7.82906295]
[1718988711212,3.66638098,3493.7,3493.2,2.29014]
[1718988711422,3.95300228,3493.6,3493.2,2.29014]
[1718988711589,3.95300228,3493.5,3493.2,3.0]
[1718988711815,2.5765113,3493.4,3493.2,3.0]
[1718988712154,1.37649098,3493.6,3493.4,2.29003]
[1718988712357,1.37649098,3493.7,3493.4,2.29003]
[1718988712532,3.95323816,3493.6,3493.4,2.29003]
[1718988712872,2.28978,3493.8,3493.4,2.29003]
[1718988713048,2.75297918,3493.6,3493.4,2.29003]
[1718988713569,2.75297918,3493.6,3493.5,2.28996]
[1718988713747,3.24849597,3493.6,3493.5,5.3942271]
[1718988713917,1.87200403,3493.6,3493.5,5.9442271]
[1718988714260,1.37648724,3493.6,3493.5,5.9442271]
[1718988714429,1.87199556,3493.6,3493.5,5.9442271]
[1718988714748,3.2484908,3493.6,3493.5,5.9442271]
[1718988715325,1.87199886,3493.6,3493.5,5.9442271]
[1718988715546,3.2484908,3493.6,3493.5,5.9442271]
[1718988715743,3.2484908,3493.6,3493.5,3.6542671]
[1718988715959,3.24844104,3493.6,3493.5,3.6542671]
[1718988716157,3.24844104,3493.6,3493.5,5.9442271]
[1718988716466,1.87199591,3493.6,3493.5,5.9442271]
[1718988716848,3.24834509,3493.6,3493.5,5.9442271]
[1718988717044,1.87197902,3493.6,3493.5,5.9442271]
[1718988717574,1.87197902,3493.6,3493.5,8.2341871]
[1718988717787,1.37648724,3493.6,3493.5,8.2341871]
[1718988718195,1.37648724,3493.6,3493.5,5.9442271]
[1718988718693,1.8719756,3493.6,3493.5,5.9442271]
[1718988718843,1.37648724,3493.6,3493.5,5.9442271]
[1718988719287,1.87197196,3493.6,3493.5,8.2341871]
[1718988719583,1.37648724,3493.6,3493.5,8.2341871]
[1718988719792,1.87196635,3493.6,3493.5,8.2341871]
[1718988720501,1.87196037,3493.6,3493.5,5.9442271]
[1718988720780,1.87196319,3493.6,3493.5,5.9442271]
[1718988720956,3.24830387,3493.6,3493.5,5.9442271]
[1718988721161,1.87196319,3493.6,3493.5,5.9442271]
[1718988721355,3.24830918,3493.6,3493.5,8.2341871]
[1718988721555,1.37648724,3493.6,3493.5,13.5241471]
[1718988722182,1.37648724,3493.6,3493.5,11.2341871]
[1718988722389,1.37648724,3493.6,3493.5,13.5241471]
[1718988725480,1.37648724,3493.6,3493.5,11.2341871]
[1718988726264,1.37648724,3493.6,3493.5,13.5241471]
[1718988726485,1.37648724,3493.6,3493.5,13.81721287]
[1718988729920,0.119593,3494.0,3493.9,13.7851]
[1718988730223,0.119593,3494.0,3493.9,19.3451]
[1718988730549,2.3621,3495.3,3494.4,2.28934]
[1718988730727,2.08020517,3495.2,3494.7,2.28915]
[1718988731041,2.08020517,3495.2,3494.9,2.28903]
[1718988731315,2.08020517,3495.2,3494.8,0.55]
[1718988731316,4.36905517,3495.2,3494.7,2.28917]
[1718988731532,2.08020517,3495.1,3494.9,2.28898]
[1718988731685,2.08020517,3495.0,3494.9,2.28898]
[1718988731886,2.08020517,3495.2,3494.9,2.28898]
[1718988732090,2.08020517,3495.1,3495.0,2.28898]
[1718988732287,2.08020517,3495.2,3495.0,2.28898]
[1718988732517,2.08020517,3495.2,3494.9,2.28904]
[1718988732727,2.08020517,3495.2,3495.0,2.28898]
[1718988732927,2.08036413,3495.1,3495.0,2.28898]
[1718988733085,2.08036413,3495.2,3494.5,2.01]
[1718988733288,2.08036413,3495.1,3494.4,3.0]
[1718988733528,2.28945,3494.3,3493.9,2.28969]
[1718988733739,2.28945,3494.3,3493.5,10.83731287]
[1718988733740,2.28951,3494.2,3493.6,2.28984]
[1718988733888,2.28951,3494.2,3493.7,2.28982]
[1718988733889,4.37031584,3494.1,3493.7,2.28982]
[1718988734089,2.08099393,3494.0,3493.8,2.28976]
[1718988734359,2.28945,3494.3,3493.9,2.28969]
[1718988734640,4.8659775,3494.2,3493.9,2.28969]
[1718988734853,2.08099376,3494.1,3493.9,2.28969]
[1718988735211,4.76428,3494.4,3493.9,2.28969]
[1718988735411,4.37032353,3494.3,3493.9,2.28969]
[1718988735616,2.08088353,3494.2,3493.9,2.28969]
[1718988735838,2.28944,3494.3,3493.9,2.28969]
[1718988736044,2.0808901,3494.2,3494.1,2.2895]
[1718988736340,4.3703401,3494.3,3494.0,2.28963]
[1718988736514,2.0808901,3494.2,3494.0,2.28963]
[1718988736708,2.0808901,3494.1,3494.0,2.28963]
[1718988736924,2.2893,3494.6,3494.1,2.28954]
[1718988737122,4.37014638,3494.5,3494.1,2.28954]
[1718988737348,2.08082638,3494.4,3494.1,2.28954]
[1718988738036,2.08082638,3494.4,3493.9,2.28969]
[1718988738369,2.2895,3494.2,3493.8,2.28976]
[1718988738645,2.08087739,3494.1,3493.9,2.28969]
[1718988738846,2.28945,3494.3,3493.9,2.28969]
[1718988739043,2.08087686,3494.2,3493.5,2.30306577]
[1718988739255,2.28924,3494.6,3494.2,2.28946]
[1718988739412,4.37011685,3494.5,3494.2,2.28946]
[1718988739617,2.08080685,3494.4,3494.2,2.28946]
[1718988740013,2.08080685,3494.4,3494.3,2.28944]
[1718988740756,2.08080685,3494.6,3494.3,2.28944]
[1718988740916,2.08080685,3494.5,3494.3,2.28944]
[1718988741110,2.08080685,3494.4,3494.3,2.28944]
[1718988741313,4.37006685,3494.6,3494.2,2.2895]
[1718988741539,2.08080685,3494.5,3494.2,2.2895]
[1718988741754,2.28926,3494.6,3494.2,2.2895]
[1718988741971,2.08072678,3494.5,3494.2,2.2895]
[1718988742135,2.28926,3494.6,3494.2,2.2895]
[1718988742335,2.08072284,3494.5,3494.2,2.2895]
[1718988742541,2.08072284,3494.5,3494.3,2.28942]
[1718988742749,2.08072284,3494.4,3494.3,4.57886]
[1718988742971,5.40994427,3495.2,3494.3,2.696846]
[1718988742972,5.41148427,3495.2,3494.3,2.696846]
[1718988743146,2.57578789,3495.1,3494.9,2.28899]
[1718988743351,2.08044407,3495.0,3494.9,2.28899]
[1718988743666,2.08028177,3495.1,3495.0,2.28898]
[1718988743866,2.08028121,3495.1,3495.0,2.28898]
[1718988744646,2.2904,3495.2,3495.0,2.28898]
[1718988744843,2.08036719,3495.1,3495.0,2.28898]
[1718988745373,2.2904,3495.2,3495.0,2.28898]
[1718988745582,2.28865,3495.5,3495.0,2.28897]
[1718988745744,2.57550402,3495.4,3494.7,4.29914]
[1718988745946,2.3779,3496.0,3495.7,2.28847]
[1718988746159,2.07999975,3495.9,3495.8,2.28843]
[1718988746363,2.28794,3496.6,3496.2,2.28816]
[1718988746535,4.67499,3497.0,3495.8,2.28846]
[1718988746536,2.28819,3496.3,3495.8,2.28839]
[1718988746881,2.57502529,3496.2,3495.8,2.28839]
[1718988747182,2.07982907,3496.1,3495.9,2.28839]
[1718988747473,2.28807,3496.4,3495.9,2.28839]
[1718988747657,2.0798402,3496.3,3495.9,2.28839]
[1718988748369,2.28807,3496.4,3496.0,2.28832]
[1718988748782,1.26984508,3496.6,3495.6,3.0]
[1718988748980,2.28788,3496.7,3496.2,2.28813]
[1718988749191,2.28788,3496.7,3496.2,2.28815]
[1718988749610,2.07968091,3496.6,3496.2,2.28815]
[1718988749760,2.28788,3496.7,3496.3,2.28812]
[1718988750206,2.3873,3497.0,3496.2,2.28818]
[1718988750207,2.28793,3496.6,3496.2,2.28818]
[1718988750817,0.457573,3496.6,3495.8,2.28845]
[1718988751032,2.28819,3496.3,3495.9,0.55]
[1718988751158,2.28819,3496.3,3495.9,2.83838]
[1718988751471,2.28806,3496.4,3496.0,2.28832]
[1718988752375,4.57618,3496.4,3496.0,2.28832]
[1718988752799,2.28806,3496.4,3496.0,2.28832]
[1718988753363,2.288,3496.5,3496.1,2.28824]
[1718988753674,2.288,3496.5,3495.9,2.83838]
[1718988754009,2.28807,3496.4,3495.8,2.28844]
[1718988754165,2.5396791,3496.5,3495.9,2.28838]
[1718988754364,2.28789,3496.7,3495.9,2.28838]
[1718988754365,2.2882,3496.2,3495.9,2.28838]
[1718988754699,2.28807,3496.4,3495.9,2.28838]
[1718988755061,2.28813,3496.3,3495.9,2.28838]
[1718988755703,2.28813,3496.3,3495.7,2.28851]
[1718988755997,2.28826,3496.1,3495.8,0.55]
[1718988756194,2.28821,3496.2,3495.8,2.83845]
[1718988757396,2.28839,3495.9,3495.5,2.28864]
[1718988758080,2.28834,3496.0,3495.6,2.28859]
[1718988758291,2.28827,3496.1,3495.6,2.28859]
[1718988758799,2.28827,3496.1,3495.7,2.28846]
[1718988758982,2.28782,3496.8,3495.8,0.55]
[1718988759183,2.288,3496.5,3496.0,2.28831]
[1718988759499,2.28813,3496.3,3496.0,2.28831]
[1718988760561,2.28813,3496.3,3495.9,2.28838]
[1718988762466,2.28808,3496.4,3496.0,2.28832]
[1718988764076,2.28813,3496.3,3496.0,2.28832]
[1718988764271,2.28813,3496.3,3495.8,2.28845]
[1718988764272,2.28821,3496.2,3495.8,2.28844]
[1718988764471,2.28814,3496.3,3495.9,2.83836]
[1718988764711,2.2882,3496.2,3495.9,2.83836]
[1718988764910,2.2882,3496.2,3494.9,0.2910983]
[1718988764911,2.28847,3495.8,3494.9,0.2910983]
[1718988765120,2.28863,3495.6,3495.1,5.28889]
[1718988765273,2.28871,3495.5,3495.0,5.28896]
[1718988765675,2.28871,3495.5,3495.1,2.28891]
[1718988765901,2.28854,3495.7,3495.3,2.28878]
[1718988766584,2.28874,3495.4,3495.0,3.0]
[1718988766795,2.277,3495.4,3494.8,0.1003952]
[1718988767018,2.28897,3495.1,3494.8,0.1003952]
[1718988767250,2.28897,3495.1,3494.7,2.28917]
[1718988769511,2.28852,3495.7,3494.7,2.28917]
[1718988769853,2.28866,3495.5,3495.0,2.28897]
[1718988770825,2.28872,3495.4,3495.0,2.28897]
[1718988771032,2.28866,3495.5,3495.1,2.28891]
[1718988771425,2.28859,3495.6,3494.9,2.28904]
[1718988771426,2.28872,3495.4,3495.0,2.28898]
[1718988771932,2.28884,3495.3,3494.6,2.28924]
[1718988772122,2.28884,3495.3,3494.7,0.55]
[1718988772653,2.28884,3495.3,3494.8,2.28911]
[1718988772855,2.28884,3495.3,3494.7,0.55]
[1718988772856,2.28872,3495.4,3494.7,0.55]
[1718988773040,2.2891,3494.9,3494.5,5.28931]
[1718988773241,2.2891,3494.9,3494.6,0.55]
[1718988773553,2.2891,3494.9,3494.6,3.55]
[1718988774303,2.2997,3495.1,3494.6,3.55]
[1718988774738,2.2997,3495.1,3494.6,0.55]
[1718988774929,2.28904,3495.0,3494.6,2.83923]
[1718988775617,4.58862,3495.1,3494.6,5.12841]
[1718988775828,2.28899,3495.0,3494.6,2.83918]
[1718988776339,4.58863,3495.1,3494.7,2.28911]
[1718988776769,2.28899,3495.0,3494.6,2.83922]
[1718988777276,2.28899,3495.0,3494.7,2.28918]
[1718988777728,2.28899,3495.0,3494.6,2.83923]
[1718988779487,4.58862,3495.1,3494.6,2.83923]
[1718988779764,2.289,3495.0,3494.6,2.83923]
[1718988779936,2.289,3495.0,3494.7,2.28917]
[1718988780139,2.289,3495.0,3494.6,2.83922]
[1718988780537,2.28866,3495.5,3495.2,2.28882]
[1718988780781,2.28866,3495.5,3495.1,2.2889]
[1718988780929,2.2886,3495.6,3494.7,2.3082]
[1718988781258,2.2886,3495.6,3495.3,2.28876]
[1718988781461,2.28866,3495.5,3495.1,2.28887]
[1718988781681,2.28872,3495.4,3494.9,2.28903]
[1718988781883,2.2888,3495.3,3495.0,0.55]
[1718988782090,2.28865,3495.5,3495.1,2.28889]
[1718988782300,2.28866,3495.5,3495.1,2.28889]
[1718988782460,2.979404,3495.6,3495.2,2.28883]
[1718988782658,2.28859,3495.6,3495.2,2.28883]
[1718988783390,2.28872,3495.4,3495.0,2.83897]
[1718988786117,2.28849,3495.8,3495.3,2.28878]
[1718988786259,2.28849,3495.8,3495.3,2.801499]
[1718988786260,4.36875103,3495.7,3495.3,2.801499]
[1718988786460,2.08020103,3495.6,3495.3,2.28873]
[1718988786994,2.28832,3496.1,3495.7,2.28851]
[1718988787213,2.28832,3496.1,3495.8,2.28845]
[1718988787214,2.07997906,3496.0,3495.8,2.28845]
[1718988787380,2.28832,3496.1,3495.7,2.28851]
[1718988788516,2.28821,3496.2,3495.8,2.28843]
[1718988788678,2.07987023,3496.1,3495.8,2.28843]
[1718988788879,2.28821,3496.2,3495.8,2.28843]
[1718988789079,2.07984175,3496.1,3495.8,2.28843]
[1718988789320,4.36810175,3496.1,3495.8,2.28843]
[1718988789484,2.07984175,3496.0,3495.7,2.28851]
[1718988789686,2.07984175,3496.0,3495.7,2.28847]
[1718988789892,2.28824,3496.2,3495.7,2.28847]
[1718988790179,2.0798967,3496.1,3495.7,2.28847]
[1718988790374,2.0798967,3496.1,3495.7,0.686575]
[1718988790618,7.29,3496.5,3496.0,2.14632]
[1718988790831,2.57491538,3496.4,3496.1,2.28826]
[1718988791005,2.07973935,3496.3,3496.1,2.28826]
[1718988791201,2.28776,3496.9,3496.1,2.28826]
[1718988791202,2.4255,3497.1,3496.5,2.28795]
[1718988791405,2.4255,3497.1,3496.4,2.28805]
[1718988791406,2.28779,3496.9,3496.4,2.28805]
[1718988791612,2.57468475,3496.8,3496.6,2.28789]
[1718988791843,2.07949597,3496.7,3496.6,2.28789]
[1718988792014,2.07949597,3496.7,3496.6,2.25989]
[1718988792201,2.07949597,3496.7,3495.8,0.55]
[1718988792202,2.07949597,3496.7,3496.3,2.28812]
[1718988792551,4.36748409,3496.6,3496.2,2.28818]
[1718988792693,2.07959391,3496.5,3495.8,0.55]
[1718988792895,2.28822,3496.2,3495.7,3.55]
[1718988793127,4.78401,3496.5,3496.1,2.28824]
[1718988793293,2.28807,3496.4,3495.7,5.83848]
[1718988793495,2.28814,3496.3,3495.9,2.28839]
[1718988793695,3.03196814,3496.3,3495.9,2.28839]
[1718988794829,2.9744,3496.5,3496.0,2.83832]
[1718988795031,2.28808,3496.4,3496.1,0.55]
[1718988795239,2.28793,3496.6,3496.1,0.55]
[1718988795441,2.28811,3496.4,3496.1,0.55]
[1718988795598,2.28814,3496.3,3495.9,2.83838]
[1718988796117,2.28826,3496.1,3495.9,0.55]
[1718988796317,2.28826,3496.1,3495.8,0.55]
[1718988797039,2.28833,3496.0,3495.8,0.55]
[1718988797206,2.28827,3496.1,3495.8,0.55]
[1718988797407,2.28839,3496.0,3495.8,0.55]
[1718988797731,4.57678,3495.9,3495.8,0.55]
[1718988797931,4.57704,3495.7,3495.6,0.55]
[1718988798100,2.28864,3495.6,3495.5,0.55]
[1718988798319,2.28873,3495.4,3495.3,0.55]
[1718988798511,2.28873,3495.4,3495.1,3.0]
[1718988798710,2.28866,3495.5,3495.1,5.28891]
[1718988799233,2.2886,3495.6,3495.2,2.28884]
[1718988799429,2.28865,3495.5,3495.1,5.2889]
[1718988799995,2.28835,3496.0,3495.2,2.83885]
[1718988800201,2.28846,3495.8,3495.3,5.28873]
[1718988800396,2.28852,3495.7,3495.4,0.55]
[1718988800734,2.28859,3495.6,3495.4,0.55]
[1718988801231,2.28865,3495.5,3495.4,0.55]
[1718988801434,2.2886,3495.6,3495.4,0.55]
[1718988801729,2.2886,3495.6,3495.3,0.55]
[1718988802301,2.28853,3495.7,3495.3,2.83877]
[1718988802521,2.28853,3495.7,3495.4,3.0]
[1718988802727,2.2886,3495.6,3495.5,0.55]
[1718988803206,2.2886,3495.6,3495.4,0.55]
[1718988803408,2.953418,3496.1,3495.4,0.55]
[1718988803409,2.28853,3495.7,3495.4,2.83872]
[1718988803624,2.28853,3495.7,3495.5,3.0]
[1718988804004,2.28828,3496.1,3495.6,0.55]
[1718988804204,2.07993631,3496.0,3495.7,2.28852]
[1718988804432,2.28828,3496.1,3495.8,0.55]
[1718988804736,2.28822,3496.2,3495.8,2.83843]
[1718988804928,2.07987876,3496.1,3495.8,2.83843]
[1718988805428,2.07987876,3496.1,3495.8,0.55]
[1718988805429,2.28833,3496.0,3495.8,0.55]
[1718988805627,2.28833,3496.0,3495.5,0.55]
[1718988805825,2.28833,3496.0,3495.5,2.83865]
[1718988806009,2.28827,3496.1,3495.6,2.28852]
[1718988806213,2.07994046,3496.0,3495.7,0.55]
[1718988806737,2.07994046,3496.0,3495.6,2.28852]
[1718988806738,2.28858,3495.7,3495.4,3.0]
[1718988806922,2.28858,3495.7,3495.5,0.55]
[1718988807119,2.28858,3495.7,3495.4,3.55]
[1718988807540,2.28846,3495.8,3495.4,5.83867]
[1718988807708,2.2884,3495.9,3495.4,5.83867]
[1718988808318,2.2885,3495.8,3495.4,5.83867]
[1718988809208,2.28819,3496.2,3495.7,2.28846]
[1718988809439,4.36815676,3496.1,3495.8,0.55]
[1718988809610,2.28834,3496.0,3495.8,0.55]
[1718988809805,2.2884,3495.9,3495.7,0.55]
[1718988810011,2.28823,3496.2,3495.5,2.83863]
[1718988810324,2.28844,3495.9,3495.5,2.83863]
[1718988810520,2.28846,3495.8,3495.5,2.83863]
[1718988810707,2.28833,3496.0,3495.5,0.55]
[1718988810903,2.28857,3495.7,3495.5,0.55]
[1718988811116,2.28857,3495.7,3495.4,3.55]
[1718988811346,2.28857,3495.7,3495.4,0.55]
[1718988811540,2.28857,3495.7,3495.4,3.55]
[1718988811844,4.5773,3495.5,3495.0,2.28893]
[1718988812048,0.686538,3495.7,3494.9,5.28903]
[1718988812049,2.28884,3495.3,3494.9,5.28903]
[1718988812209,2.28873,3495.4,3495.0,2.28898]
[1718988813449,2.28878,3495.3,3495.0,2.28898]
[1718988814011,2.28878,3495.3,3495.1,0.55]
[1718988814210,2.28878,3495.3,3495.1,3.55]
[1718988814509,2.28866,3495.5,3495.1,0.55]
[1718988814705,2.28866,3495.5,3495.1,5.8389]
[1718988814933,2.28872,3495.4,3495.1,2.8389]
[1718988815319,2.28879,3495.3,3495.1,0.55]
[1718988815521,2.28879,3495.3,3495.0,2.83897]
[1718988815849,2.28874,3495.4,3495.1,3.0]
[1718988816025,2.28874,3495.4,3495.2,0.55]
[1718988816713,2.28867,3495.5,3495.2,0.55]
[1718988817463,2.28867,3495.5,3495.2,2.83883]
[1718988817885,2.28867,3495.5,3495.2,0.55]
[1718988818177,2.28849,3495.8,3495.2,2.83881]
[1718988818473,2.28849,3495.8,3495.3,2.28875]
[1718988818474,4.86394672,3495.7,3495.3,2.28875]
[1718988818679,2.28854,3495.7,3495.4,0.55]
[1718988818995,2.28859,3495.6,3495.4,0.55]
[1718988819148,2.28865,3495.5,3495.4,0.55]
[1718988819484,2.28875,3495.4,3495.3,0.55]
[1718988819682,2.28862,3495.6,3495.0,3.0]
[1718988819887,2.28877,3495.4,3494.9,2.28899]
[1718988820096,2.28877,3495.4,3495.0,2.28898]
[1718988820255,2.28879,3495.3,3495.0,2.28898]
[1718988820586,2.28879,3495.3,3495.0,5.28898]
[1718988820792,2.28879,3495.3,3495.0,2.28898]
[1718988820946,2.28879,3495.3,3495.1,0.55]
[1718988821278,2.28879,3495.3,3495.1,3.55]
[1718988821469,2.28879,3495.3,3495.2,0.836]
[1718988821988,2.28862,3495.6,3495.2,0.836]
[1718988821989,2.28872,3495.4,3495.2,0.836]
[1718988823086,2.08020224,3495.3,3495.2,0.836]
[1718988823276,4.36898224,3495.3,3495.2,0.836]
[1718988823785,2.28878,3495.3,3495.2,0.836]
[1718988823948,4.36899376,3495.3,3495.2,0.836]
[1718988824785,2.28878,3495.3,3495.2,0.836]
[1718988824983,2.08020965,3495.3,3495.2,0.836]
[1718988825288,2.2886,3495.6,3495.3,2.28877]
[1718988825459,2.08012636,3495.5,3495.4,0.55]
[1718988827497,2.57538942,3495.5,3495.4,0.55]
[1718988827650,0.49526306,3495.5,3495.4,6.630917]
[1718988827850,2.28833,3496.0,3495.7,2.28851]
[1718988828087,2.4803,3496.3,3495.7,3.12451]
[1718988828088,2.57514611,3495.9,3495.7,3.12451]
[1718988828261,2.28826,3496.1,3495.8,0.55]
[1718988828461,2.57503683,3496.0,3495.8,0.55]
[1718988828786,2.57503683,3495.9,3495.8,0.55]
[1718988829947,4.86342683,3495.9,3495.8,0.55]
[1718988831093,2.28846,3495.8,3495.3,2.28877]
[1718988831385,2.28846,3495.8,3495.5,0.836]
[1718988831699,2.57518762,3495.7,3495.5,0.836]
[1718988831861,2.07995818,3495.6,3495.5,0.836]
[1718988832063,2.07995818,3495.7,3495.5,1.386]
[1718988832259,2.07995818,3495.6,3495.5,3.67465]
[1718988832460,2.07995818,3495.8,3495.5,3.67465]
[1718988832659,2.07995818,3495.7,3495.5,3.67465]
[1718988832866,2.07995818,3495.6,3495.5,1.386]
[1718988833158,2.07995818,3495.6,3495.5,3.67465]
[1718988833159,2.07994132,3495.6,3495.5,3.67465]
[1718988833368,2.07994132,3495.8,3495.5,3.67465]
[1718988833565,2.07994132,3495.7,3495.6,0.55]
[1718988833904,2.2884,3495.9,3495.6,0.55]
[1718988834063,2.57516827,3495.8,3495.7,0.836]
[1718988834264,3.07038729,3495.8,3495.7,3.12452]
[1718988834488,2.5751637,3495.8,3495.7,5.96304]
[1718988834689,2.07993908,3495.8,3495.7,5.96304]
[1718988834988,2.28802,3496.5,3495.7,4.499689]
[1718988835197,2.57480351,3496.4,3496.3,3.12413]
[1718988835366,2.07964899,3496.4,3496.3,3.12413]
[1718988835572,2.28775,3496.9,3496.4,2.28806]
[1718988835752,2.57457097,3496.8,3496.6,0.836]
[1718988835958,2.07946117,3496.7,3496.6,3.12388]
[1718988836761,2.28774,3496.9,3496.6,0.836]
[1718988836968,2.57443454,3496.8,3496.6,0.836]
[1718988837195,2.07933358,3496.7,3496.6,0.836]
[1718988837397,2.07933358,3496.7,3496.6,2.28793]
[1718988837687,4.36714358,3496.8,3496.6,0.55]
[1718988838006,2.07933358,3496.7,3496.6,0.55]
[1718988838318,4.36725358,3496.7,3496.4,0.55]
[1718988838494,2.07933358,3496.6,3496.4,2.83801]
[1718988838694,2.07933358,3496.5,3496.4,2.83801]
[1718988839011,4.36714358,3496.8,3496.4,2.83801]
[1718988839317,2.07933358,3496.7,3496.4,2.83801]
[1718988839519,6.65512358,3496.7,3496.4,0.55]
[1718988839719,6.65512358,3496.7,3496.3,2.83811]
[1718988839720,2.07949063,3496.6,3496.3,2.83811]
[1718988840284,2.07948769,3496.5,3496.4,2.28806]
[1718988840485,2.07948769,3496.5,3496.4,2.83806]
[1718988840679,4.36735769,3496.7,3496.4,2.83806]
[1718988840884,4.36735769,3496.7,3496.4,0.55]
[1718988840885,4.36742769,3496.6,3496.4,0.55]
[1718988841141,2.28794,3496.6,3496.5,0.55]
[1718988841424,2.2881,3496.4,3496.1,2.28824]
[1718988841582,0.686355,3496.6,3496.1,2.28824]
[1718988841782,2.07957899,3496.5,3496.4,2.28806]
[1718988841990,2.28774,3496.9,3496.5,2.28794]
[1718988842189,2.07943433,3496.8,3496.5,2.28794]
[1718988842408,2.07943433,3496.8,3496.6,2.28788]
[1718988842622,2.28755,3497.2,3496.2,2.28818]
[1718988842942,2.07933284,3497.1,3496.8,2.2878]
[1718988843289,4.36696284,3497.1,3496.8,2.2878]
[1718988843487,2.28767,3497.0,3496.7,2.28785]
[1718988843749,2.28767,3497.0,3496.8,0.55]
[1718988843891,2.28774,3496.9,3496.8,0.55]
[1718988844092,2.28785,3496.8,3496.6,0.55]
[1718988844323,2.3449,3497.3,3496.5,0.55]
[1718988844538,2.28792,3496.7,3496.5,0.55]
[1718988844831,2.28792,3496.7,3496.4,0.55]
[1718988845045,2.28792,3496.7,3496.4,2.83806]
[1718988845449,2.2877,3497.0,3496.4,0.55]
[1718988845627,2.28798,3496.6,3496.3,0.55]
[1718988845991,2.28783,3496.8,3496.5,2.28798]
[1718988846302,2.28767,3497.0,3496.7,2.28783]
[1718988846631,2.28761,3497.1,3496.8,0.55]
[1718988846802,2.28768,3497.0,3496.8,0.55]
[1718988848320,2.28762,3497.1,3496.8,0.55]
[1718988848887,2.28767,3497.0,3496.8,0.55]
[1718988849745,3.03901063,3497.2,3496.8,0.55]
[1718988849912,2.28762,3497.1,3496.8,0.55]
[1718988850519,2.28762,3497.1,3496.8,2.83778]
[1718988851825,2.28774,3496.9,3496.8,0.55]
[1718988852023,2.28774,3496.9,3496.6,0.55]
[1718988852406,2.28767,3497.0,3496.7,2.28784]
[1718988852668,2.28767,3497.0,3496.8,0.55]
[1718988852949,3.05475606,3497.1,3496.8,0.55]
[1718988853235,2.28768,3497.0,3496.8,0.55]
[1718988853535,2.28774,3496.9,3496.6,2.28792]
[1718988853737,2.28774,3496.9,3496.7,0.55]
[1718988853900,2.28768,3497.0,3496.7,0.55]
[1718988854341,2.28775,3496.9,3496.7,0.55]
[1718988855008,2.28775,3496.9,3496.3,7.57618]
[1718988855009,2.28774,3496.9,3496.3,7.57618]
[1718988855217,2.28781,3496.8,3496.3,3.0]
[1718988855415,2.28791,3496.7,3496.3,3.0]
[1718988855614,2.28793,3496.6,3496.3,2.28811]
[1718988855814,2.28793,3496.6,3496.3,5.28811]
[1718988856011,2.28793,3496.6,3496.2,2.28817]
[1718988856612,2.28801,3496.5,3496.2,2.28817]
[1718988856801,2.288,3496.5,3496.3,0.55]
[1718988857002,2.3391,3496.7,3496.2,0.55]
[1718988857526,2.28808,3496.4,3496.2,0.55]
[1718988857845,2.28808,3496.4,3496.3,0.836]
[1718988858063,2.28808,3496.4,3496.1,3.0]
[1718988858206,2.28843,3495.9,3495.3,9.72874]
[1718988858409,2.28847,3495.8,3495.6,0.836]
[1718988858626,2.28847,3495.8,3495.4,2.28871]
[1718988858830,2.28847,3495.8,3495.7,0.836]
[1718988860325,2.28847,3495.8,3495.7,1.386]
[1718988862134,2.28859,3495.6,3495.5,0.836]
[1718988862346,2.28859,3495.6,3495.5,1.386]
[1718988862545,2.28846,3495.8,3495.5,1.386]
[1718988863040,2.28859,3495.6,3495.5,0.55]
[1718988863338,2.28859,3495.6,3495.5,0.836]
[1718988863549,2.28859,3495.6,3495.5,1.386]
[1718988864808,2.28859,3495.6,3493.9,13.67584976]
[1718988864809,2.28883,3495.3,3494.8,2.28905]
[1718988865010,2.28883,3495.3,3495.2,0.836]
[1718988865340,2.28883,3495.3,3495.2,1.386]
[1718988865845,2.28873,3495.4,3495.2,1.386]
[1718988866452,2.28893,3495.1,3494.7,4.62502]
[1718988866749,2.2888,3495.3,3495.0,0.836]
[1718988866909,2.28878,3495.3,3495.2,0.836]
[1718988868214,2.28878,3495.3,3494.8,2.8391]
[1718988868215,2.28892,3495.1,3494.8,2.8391]
[1718988868550,2.28892,3495.1,3495.0,0.836]
[1718988868747,2.28886,3495.2,3495.0,1.386]
[1718988868966,2.28886,3495.2,3495.0,0.836]
[1718988869112,2.28886,3495.2,3495.1,0.55]
[1718988869973,2.28879,3495.3,3495.1,0.55]
[1718988872575,2.28904,3495.0,3494.7,2.3359]
[1718988872741,2.28904,3495.0,3494.8,0.836]
[1718988873091,2.28904,3494.9,3494.8,0.836]
[1718988873837,2.28893,3495.1,3494.8,0.836]
[1718988874036,2.289,3495.0,3494.9,0.55]
[1718988874236,2.289,3495.0,3494.9,0.836]
[1718988874550,2.289,3495.0,3494.9,1.386]